bitfinex-derivatives/quotes_ETHF0:USTF0_20250918
["timestamp","ask_amount","ask_price","bid_price","bid_amount"]
[1758157266252,0.7977,4585.5,4585.4,7.1345024]
[1758157267461,0.7977,4585.5,4585.4,3.2078]
[1758157267754,0.7977,4585.5,4584.9,0.222]
[1758157267755,0.705,4585.4,4584.9,0.222]
[1758157269645,0.705,4585.4,4584.8,3.3282]
[1758157269848,0.705,4585.4,4585.1,1.07439254]
[1758157273457,0.705,4585.4,4584.8,3.3282]
[1758157273754,0.705,4585.4,4585.0,1.07439254]
[1758157275154,0.705,4585.4,3564.0,0.032]
[1758157275155,0.121,4583.5,4583.4,3.2078]
[1758157275452,0.3075,4583.4,4582.8,1.07439254]
[1758157275656,0.121,4583.0,4582.5,3.2078]
[1758157275847,0.3075,4582.9,4582.6,0.222]
[1758157276253,0.121,4583.0,4582.6,0.222]
[1758157276449,0.3075,4582.9,4582.6,0.222]
[1758157276654,0.121,4583.0,4582.6,0.222]
[1758157276856,0.63,4583.0,4582.9,1.07439254]
[1758157277158,0.826,4583.0,4582.5,3.2078]
[1758157277456,0.826,4583.0,4582.9,1.07439254]
[1758157277457,0.5185,4583.0,4582.9,1.07439254]
[1758157277755,3.7263,4583.0,4582.5,0.222]
[1758157278054,0.705,4582.8,4582.7,1.07439254]
[1758157278253,0.826,4582.5,4582.3,1.07439254]
[1758157278449,0.509,4582.4,4582.0,0.1733]
[1758157278649,0.705,4582.4,4582.3,1.07439254]
[1758157279357,3.3288,4583.0,4582.3,1.07439254]
[1758157279559,0.4285,4583.0,4582.9,1.07439254]
[1758157279856,0.4285,4583.0,4582.9,3.93310965]
[1758157281556,0.63,4583.0,4582.9,3.93310965]
[1758157281761,0.63,4583.0,4582.9,3.70910965]
[1758157282054,0.121,4582.5,4582.4,6.91690965]
[1758157282265,0.4285,4582.5,4582.4,7.14090965]
[1758157282956,0.121,4582.5,4582.4,7.14090965]
[1758157283157,0.4285,4582.5,4582.4,7.14090965]
[1758157283957,0.63,4583.0,4582.4,7.14090965]
[1758157284159,0.63,4583.0,4582.9,3.70910965]
[1758157284358,0.63,4583.0,4582.9,0.224]
[1758157284559,0.826,4583.0,4582.9,0.224]
[1758157284858,0.3075,4582.9,4582.7,3.70910965]
[1758157285059,0.705,4582.8,4582.7,3.70910965]
[1758157285258,0.705,4582.8,4582.7,3.93210965]
[1758157285463,0.705,4582.8,4582.7,0.223]
[1758157285658,0.3075,4582.7,4582.6,3.70910965]
[1758157285869,0.509,4582.7,4582.6,3.93210965]
[1758157286660,0.509,4582.7,4582.6,3.70910965]
[1758157286862,0.509,4582.7,4582.6,3.93210965]
[1758157287159,0.3075,4582.7,4582.6,3.93210965]
[1758157287365,0.3075,4582.9,4582.6,3.93210965]
[1758157288259,0.121,4583.0,4582.6,3.93210965]
[1758157288460,0.3075,4582.9,4582.6,3.93210965]
[1758157288756,0.121,4583.0,4582.6,3.93210965]
[1758157289158,0.3075,4582.9,4582.6,3.93210965]
[1758157289768,0.3075,4582.9,4582.6,4.43568726]
[1758157289963,0.509,4582.9,4582.5,3.2078]
[1758157290269,0.3075,4582.9,4582.6,0.223]
[1758157290471,0.509,4582.9,4582.6,0.223]
[1758157290772,0.3075,4582.1,4582.0,3.3811]
[1758157290958,0.509,4582.1,4582.0,3.6041]
[1758157291264,0.705,4582.1,4582.0,3.2078]
[1758157291568,0.509,4581.6,4581.5,3.2296]
[1758157291760,0.509,4581.6,4581.5,3.4526]
[1758157291966,0.509,4581.6,4581.5,3.4308]
[1758157292464,0.705,4581.6,4581.5,3.4308]
[1758157292664,0.3075,4581.6,4581.5,3.4308]
[1758157292860,0.3075,4581.9,4581.5,3.4308]
[1758157293070,0.3225,4582.0,4581.5,3.4308]
[1758157293266,0.121,4582.0,4581.5,3.4308]
[1758157293471,0.3075,4581.9,4581.5,3.4308]
[1758157293674,0.3225,4582.0,4581.5,3.4308]
[1758157294169,0.3075,4581.8,4581.5,3.2078]
[1758157294470,0.2015,4581.9,4581.6,0.223]
[1758157294666,0.4285,4582.0,4581.8,4.21268726]
[1758157294860,0.121,4582.5,4581.9,0.223]
[1758157295065,0.3075,4582.4,4582.1,3.2078]
[1758157295367,0.3075,4582.4,4582.2,0.223]
[1758157295759,0.2952,4582.4,4582.2,0.223]
[1758157295963,0.121,4582.5,4582.2,0.223]
[1758157296172,0.2952,4582.4,4582.2,0.223]
[1758157296367,0.121,4582.5,4582.3,4.21268726]
[1758157296671,0.4162,4582.5,4582.4,0.223]
[1758157297670,0.2952,4582.9,4582.4,0.223]
[1758157297867,0.1213,4582.5,4582.3,4.21268726]
[1758157298168,0.615,4582.5,4582.4,0.223]
[1758157298561,0.4165,4582.5,4582.4,0.223]
[1758157300470,0.2952,4582.4,4582.1,3.2078]
[1758157300675,0.6906,4582.3,4582.1,3.2078]
[1758157300875,0.6906,4582.3,4582.2,0.223]
[1758157301768,0.3954,4582.3,4582.1,3.2078]
[1758157301974,0.3954,4582.3,4582.2,0.223]
[1758157302174,0.1213,4582.5,4582.2,4.43568726]
[1758157302475,0.2952,4582.4,4582.2,4.43568726]
[1758157302665,0.4937,4582.3,4582.2,4.43568726]
[1758157302867,0.6906,4582.3,4582.2,4.21268726]
[1758157303069,0.6906,4582.3,4582.2,4.43568726]
[1758157303270,0.6906,4582.3,4582.2,0.223]
[1758157304177,0.6906,4582.3,4582.1,3.2078]
[1758157304370,0.2952,4582.2,4582.1,3.2078]
[1758157304571,0.6906,4582.2,4582.1,3.4308]
[1758157304877,0.2952,4582.2,4582.1,3.4308]
[1758157306378,0.4937,4582.2,4582.1,3.4308]
[1758157307975,0.2952,4582.4,4582.1,3.4308]
[1758157308180,0.4165,4582.5,4582.3,4.21268726]
[1758157308385,0.615,4582.5,4582.4,0.223]
[1758157308577,0.4165,4582.5,4582.4,0.223]
[1758157310074,0.615,4582.5,4582.4,0.223]
[1758157312680,0.8119,4582.5,4582.4,0.223]
[1758157313584,0.2952,4582.4,4582.3,4.21268726]
[1758157313783,0.2952,4582.4,4582.3,4.43568726]
[1758157314083,0.6906,4582.4,4582.3,4.21268726]
[1758157314279,0.6906,4582.4,4582.3,4.43568726]
[1758157321392,0.6906,4582.4,4582.3,4.21268726]
[1758157321890,0.4937,4582.4,4582.3,1.24427225]
[1758157322091,0.1213,4582.5,4582.3,1.46627225]
[1758157322387,0.3078,4582.5,4582.3,1.46627225]
[1758157323182,0.2106,4583.0,4582.9,0.408]
[1758157323392,0.121,4584.0,4582.9,0.9286]
[1758157323589,0.5432,4583.0,4582.9,0.4265]
[1758157323793,0.5432,4583.0,4582.9,1.65227225]
[1758157323995,0.5432,4583.0,4582.9,1.87427225]
[1758157324694,0.5432,4583.0,4582.8,0.222]
[1758157324893,0.5432,4583.0,4582.9,1.65227225]
[1758157325191,0.851,4583.0,4582.9,1.65227225]
[1758157326394,0.8544,4583.0,4582.9,1.65227225]
[1758157326791,0.8544,4583.0,4582.9,1.87427225]
[1758157329790,0.8544,4583.0,4582.9,1.67077225]
[1758157331894,3.2078,4583.6,4582.9,0.9308]
[1758157332092,0.636,4583.5,4583.4,1.64497225]
[1758157332293,0.8475,4583.5,4583.4,1.64497225]
[1758157332692,0.8475,4583.5,4583.4,1.94587225]
[1758157333098,0.3035,4583.5,4583.4,1.94587225]
[1758157333792,0.3035,4583.8,4583.7,0.4007]
[1758157333998,0.3035,4583.8,4583.7,1.94587225]
[1758157334195,0.121,4584.0,4583.7,1.94587225]
[1758157334496,0.636,4584.0,4583.9,0.4007]
[1758157334702,0.8475,4584.0,4583.9,0.4007]
[1758157335891,0.423,4584.5,4584.4,0.7117]
[1758157336203,0.5435,4584.5,4584.4,1.95597225]
[1758157337101,3.2078,4584.7,4584.6,0.7117]
[1758157337404,3.2078,4584.7,4584.6,0.9337]
[1758157338401,3.2078,4585.8,4585.2,0.311]
[1758157338696,3.9343,4585.8,4585.7,1.95597225]
[1758157338896,0.21808,4585.7,4584.6,0.311]
[1758157339199,0.2115,4584.7,4584.6,0.7117]
[1758157339404,0.1205,4585.5,4584.7,0.311]
[1758157339606,0.7265,4585.4,4585.3,0.1973]
[1758157340298,0.7265,4585.4,4585.3,1.44157225]
[1758157340504,0.7265,4585.4,4585.3,1.75257225]
[1758157340699,0.7265,4585.4,4585.3,1.44157225]
[1758157343203,0.7265,4585.4,4585.3,1.95597225]
[1758157343804,3.2078,4585.6,4585.3,1.64497225]
[1758157344004,0.2115,4585.5,4585.4,0.7117]
[1758157344210,0.515,4585.5,4585.4,0.7117]
[1758157344405,0.7265,4585.5,4585.4,0.7117]
[1758157346710,3.2078,4585.6,4585.4,0.7117]
[1758157346912,3.2078,4585.6,4585.5,0.8287]
[1758157348213,3.2078,4586.2,4585.5,0.5177]
[1758157348415,0.7265,4586.1,4586.0,0.7117]
[1758157349107,0.423,4585.1,4584.9,0.0218]
[1758157349311,5.52107225,4585.0,4584.2,3.2078]
[1758157349506,0.7265,4584.3,4584.2,3.2078]
[1758157351014,0.423,4583.9,4583.8,1.24427225]
[1758157351214,0.7265,4583.9,4583.8,1.66357225]
[1758157351514,0.7265,4583.9,4583.8,1.97457225]
[1758157351815,0.7265,4583.9,4583.8,2.00843176]
[1758157352507,0.7265,4583.9,4583.8,1.69743176]
[1758157353004,0.7265,4583.9,4583.8,2.00843176]
[1758157354714,0.7265,4583.9,4583.8,1.78643176]
[1758157354916,0.7265,4583.9,4583.8,2.00843176]
[1758157355319,0.7265,4583.9,4583.8,0.9337]
[1758157356010,0.7265,4583.9,4583.5,0.1745]
[1758157356011,0.2995,4583.8,4583.5,0.1745]
[1758157356317,0.7094,4583.6,4583.5,1.24923176]
[1758157361019,0.7094,4583.6,4583.5,1.77353176]
[1758157361212,0.7094,4583.6,4583.5,2.09803176]
[1758157361413,0.2076,4583.6,4583.5,2.09803176]
[1758157361613,0.5071,4583.6,4583.5,2.09803176]
[1758157361913,0.7094,4583.6,4583.5,2.09803176]
[1758157362615,0.7094,4583.6,4583.5,5.30583176]
[1758157362813,0.2076,4583.6,4583.5,5.30583176]
[1758157363422,0.7094,4583.6,4583.5,1.97563176]
[1758157364822,0.7094,4583.6,4583.5,2.09803176]
[1758157365125,0.7094,4583.6,4583.5,1.97563176]
[1758157365719,0.2995,4584.2,4583.9,0.3136]
[1758157366021,0.7291,4584.1,4584.0,0.7264]
[1758157366220,0.9314,4584.1,4584.0,1.80113176]
[1758157366726,0.7094,4584.1,4584.0,1.80113176]
[1758157366928,3.2078,4584.3,4584.0,1.60993176]
[1758157367114,3.7149,4584.3,4584.2,0.4128]
[1758157367318,3.7149,4584.3,4584.2,0.7264]
[1758157368626,3.7149,4584.3,4584.2,1.80113176]
[1758157369928,3.9172,4584.3,4584.2,1.80113176]
[1758157373126,3.9172,4584.3,4584.0,0.1745]
[1758157374331,1.07473176,4584.1,4584.0,0.1745]
[1758157374527,0.1043,4584.0,4583.5,0.0218]
[1758157374727,3.9172,4583.6,4583.5,0.0218]
[1758157376435,3.9172,4583.6,4583.4,1.07473176]
[1758157376636,0.9314,4583.5,4583.4,1.38833176]
[1758157377442,0.9314,4583.5,4583.4,1.59903176]
[1758157377736,0.9314,4583.5,4583.4,1.80113176]
[1758157377941,3.4154,4583.6,4583.5,0.8488]
[1758157378142,3.9313,4583.6,4583.5,0.8488]
[1758157378441,3.2078,4583.6,4583.5,1.92353176]
[1758157378647,3.4177,4584.2,4584.1,0.7007]
[1758157378846,4.1622,4584.2,4584.1,1.77543176]
[1758157379038,4.1622,4584.2,4584.1,1.58353176]
[1758157379440,4.1622,4584.2,4583.6,0.314]
[1758157379744,3.8486,4584.2,4584.1,1.77543176]
[1758157380137,3.9402,4584.2,4584.1,1.77543176]
[1758157380344,3.6266,4584.2,4584.1,1.77543176]
[1758157380541,3.9402,4584.2,4584.1,1.77543176]
[1758157381348,3.6266,4584.2,4584.1,1.77543176]
[1758157381646,3.2078,4584.2,4584.1,1.77543176]
[1758157382241,0.221,4584.4,4584.2,0.314]
[1758157382539,0.221,4584.4,4584.1,1.07473176]
[1758157382540,0.2099,4584.4,4584.3,0.7007]
[1758157382743,0.2099,4584.8,4584.7,0.7007]
[1758157383044,0.2099,4584.8,4584.7,1.77543176]
[1758157383641,3.2078,4584.9,4584.8,0.7007]
[1758157383842,3.4177,4584.9,4584.8,0.7007]
[1758157384146,3.9402,4584.9,4584.8,0.5088]
[1758157385446,3.9402,4584.9,4584.0,0.1191]
[1758157385649,0.6973,4584.2,4584.1,0.732]
[1758157385949,3.4158,4584.3,4584.2,0.707]
[1758157386252,3.9051,4584.3,4584.2,0.707]
[1758157388351,3.9051,4584.3,4583.7,0.289]
[1758157388549,0.4054,4583.6,4583.5,0.3541]
[1758157388750,0.6973,4583.6,4583.5,1.42883176]
[1758157388941,0.6973,4583.6,4583.5,1.40703176]
[1758157389146,0.6973,4583.6,4583.5,1.90413176]
[1758157390054,0.4054,4583.6,4583.5,1.90413176]
[1758157391055,0.4054,4583.6,4583.5,2.12613176]
[1758157391650,0.6973,4583.6,4583.5,0.707]
[1758157391953,0.6973,4583.6,4583.5,1.57363176]
[1758157393055,0.6973,4583.6,4583.5,1.78173176]
[1758157393458,0.6973,4583.6,4583.5,1.89803176]
[1758157394054,0.6973,4583.6,4583.5,1.78173176]
[1758157394250,0.6973,4583.6,4583.5,1.57363176]
[1758157394448,0.1205,4583.5,4583.0,0.1224]
[1758157394755,3.9051,4583.3,4583.2,1.57363176]
[1758157396856,3.9051,4583.3,4582.9,0.3108]
[1758157397058,3.6132,4583.3,4582.9,1.38553176]
[1758157397258,0.6973,4583.0,4582.9,1.38553176]
[1758157397655,0.6973,4583.0,4582.9,1.36373176]
[1758157398957,0.6973,4583.0,4582.9,1.07473176]
[1758157399161,0.813,4583.0,4582.7,0.4635]
[1758157399354,3.9051,4582.8,4582.7,0.4989]
[1758157399558,3.9051,4582.8,4582.7,1.57363176]
[1758157400063,3.9051,4582.8,4582.2,0.222]
[1758157400264,3.9051,4582.8,4582.7,1.36373176]
[1758157400456,3.9051,4582.8,4582.7,1.07473176]
[1758157401459,3.9051,4582.8,4582.7,1.57363176]
[1758157402860,4.1261,4582.8,4582.4,1.07473176]
[1758157403060,0.6973,4582.6,4582.5,0.289]
[1758157403562,0.4054,4582.6,4582.5,0.8233]
[1758157403959,0.6973,4582.6,4582.5,0.8233]
[1758157404562,0.6973,4582.6,4582.5,0.707]
[1758157405059,0.6973,4582.4,4582.2,0.0218]
[1758157405358,3.9051,4582.3,4582.2,0.5207]
[1758157406871,3.9051,4582.3,4582.2,0.0218]
[1758157409864,3.9051,4582.3,4582.2,0.5207]
[1758157410471,3.9051,4582.3,4582.2,0.7288]
[1758157410668,3.9051,4582.3,4582.2,1.80353176]
[1758157410970,3.4288,4582.3,4582.2,1.80353176]
[1758157411173,3.6368,4582.3,4582.2,1.80353176]
[1758157411875,3.2078,4582.3,4582.2,0.7288]
[1758157412175,3.2078,4582.3,4582.2,1.97324702]
[1758157412370,3.2078,4582.3,4582.2,5.97324702]
[1758157412571,3.2078,4582.9,4582.8,0.707]
[1758157412872,3.2078,4582.9,4582.8,1.95144702]
[1758157415269,3.4158,4583.5,4583.4,0.418]
[1758157415573,3.4158,4583.5,4583.4,0.707]
[1758157415769,3.2078,4583.5,4583.4,0.707]
[1758157416173,3.3988,4583.5,4583.4,0.707]
[1758157416675,3.2078,4584.1,4583.4,0.707]
[1758157416972,3.8863,4584.1,4584.0,0.8351]
[1758157417270,4.1073,4584.1,4584.0,0.7083]
[1758157418273,4.1073,4584.1,4584.0,0.5098]
[1758157420069,4.1073,4584.1,4583.6,1.24444702]
[1758157420371,0.6785,4583.7,4583.6,1.95274702]
[1758157421980,0.6785,4583.7,4583.1,0.3101]
[1758157422180,0.6785,4583.2,4583.1,1.75424702]
[1758157423069,0.6785,4583.2,4583.0,0.0218]
[1758157423376,3.8863,4583.1,4583.0,0.3319]
[1758157423571,3.8863,4583.1,4583.0,0.0218]
[1758157423777,8.1073,4583.1,4583.0,0.0218]
[1758157424379,0.3885,4582.3,4582.2,1.44414702]
[1758157424576,3.2078,4582.6,4582.2,1.64264702]
[1758157424773,0.191,4582.7,4582.6,0.3101]
[1758157424979,0.191,4582.7,4582.6,0.7083]
[1758157425179,0.6785,4582.7,4582.6,0.7083]
[1758157427675,0.3885,4582.7,4582.0,0.4369]
[1758157427880,3.5963,4582.5,4582.4,1.95274702]
[1758157428079,0.3885,4582.5,4582.4,1.95274702]
[1758157428378,3.2078,4583.0,4582.8,0.3982]
[1758157428679,3.2078,4583.0,4582.9,1.95274702]
[1758157429076,3.3988,4583.0,4582.9,1.95274702]
[1758157429279,3.5963,4583.0,4582.9,1.95274702]
[1758157429579,3.8863,4583.0,4582.9,1.95274702]
[1758157430178,4.0045,4583.0,4582.5,0.3101]
[1758157430377,3.7145,4583.0,4582.5,0.5321]
[1758157430577,0.6785,4582.6,4582.5,0.5321]
[1758157430777,0.6785,4582.6,4582.2,0.3101]
[1758157431075,0.6785,4582.5,4582.4,1.55454702]
[1758157431282,0.3885,4582.5,4582.4,1.95274702]
[1758157431474,0.191,4582.5,4582.4,1.95274702]
[1758157432576,3.7145,4582.5,4582.2,1.24444702]
[1758157432776,0.6785,4582.4,4582.3,0.7083]
[1758157433375,0.3885,4582.4,4582.3,0.7083]
[1758157434883,0.191,4582.4,4582.3,0.7083]
[1758157435481,0.29,4582.3,4582.1,0.1745]
[1758157435686,0.6785,4582.2,4582.1,2.12724702]
[1758157438882,0.3885,4582.2,4582.1,2.12724702]
[1758157440182,0.6931,4582.2,4582.1,2.12724702]
[1758157440385,0.3885,4582.2,4582.1,2.12724702]
[1758157440582,3.2078,4582.5,4582.2,0.3049]
[1758157440780,3.2078,4582.5,4582.4,1.94894702]
[1758157441178,3.4159,4582.5,4582.4,1.94894702]
[1758157441476,3.4159,4582.5,4582.4,0.7045]
[1758157441477,3.2078,4582.5,4582.4,0.7045]
[1758157442478,3.8291,4583.1,4583.0,0.203]
[1758157442686,4.1337,4583.1,4583.0,0.7045]
[1758157444691,3.8291,4583.1,4583.0,2.07004702]
[1758157444988,3.6071,4583.1,4583.0,2.07004702]
[1758157445291,3.6071,4583.1,4583.0,0.8256]
[1758157445490,3.9117,4583.1,4583.0,0.8256]
[1758157446193,3.6071,4583.1,4583.0,0.8256]
[1758157446578,3.9124,4583.1,4583.0,0.8256]
[1758157449786,3.6071,4583.1,4583.0,0.8256]
[1758157450292,0.6944,4583.7,4583.6,0.5126]
[1758157450491,0.9164,4583.7,4583.6,0.5126]
[1758157450691,0.9164,4583.7,4583.6,0.717]
[1758157451094,0.3891,4583.7,4583.6,0.717]
[1758157451294,0.193,4583.7,4583.6,0.717]
[1758157451490,3.2078,4583.9,4583.7,0.3106]
[1758157451687,3.2078,4583.9,4583.8,1.96144702]
[1758157454190,3.4008,4583.9,4583.8,1.96144702]
[1758157454791,3.2078,4583.9,4583.8,1.96144702]
[1758157454992,0.9164,4584.3,4584.2,0.202]
[1758157455291,0.6944,4584.3,4584.2,1.96144702]
[1758157455799,0.193,4584.3,4584.2,1.96144702]
[1758157456492,0.6944,4584.3,4584.2,1.96144702]
[1758157459593,3.4008,4584.4,4584.3,0.717]
[1758157459793,3.2078,4584.4,4584.3,0.717]
[1758157460294,3.4008,4584.4,4584.3,0.717]
[1758157460595,3.2078,4584.9,4584.4,0.3106]
[1758157460794,4.1242,4584.9,4584.8,1.75704702]
[1758157461893,3.4008,4584.9,4584.8,1.96144702]
[1758157462095,0.1232,4585.5,4584.8,5.86895701]
[1758157462291,0.1232,4585.5,4584.6,1.24444702]
[1758157462292,0.1232,4586.0,4585.4,4.45224702]
[1758157462592,0.5123,4586.0,4585.9,3.2078]
[1758157462899,0.5123,4586.0,4585.9,4.67524702]
[1758157463100,0.5123,4586.0,4585.9,4.45224702]
[1758157463397,0.5123,4586.0,4585.9,4.67524702]
[1758157464303,0.8176,4586.0,4585.9,4.67524702]
[1758157468304,0.8176,4586.0,4585.9,4.45224702]
[1758157468501,0.1232,4585.5,4585.4,3.2078]
[1758157468806,0.8176,4585.5,4585.4,4.67524702]
[1758157471005,0.8176,4585.5,4585.4,4.45224702]
[1758157471207,0.8176,4585.5,4585.4,4.67524702]
[1758157473703,0.8176,4585.5,4585.4,4.50476896]
[1758157474310,0.6215,4585.5,4585.4,4.50476896]
[1758157475411,0.4285,4585.5,4585.4,4.50476896]
[1758157476415,0.1232,4586.0,4585.4,4.50476896]
[1758157476711,0.1232,4586.0,4585.9,5.35573792]
[1758157476911,0.1232,4586.0,4585.9,5.57873792]
[1758157477219,0.1232,4586.0,4585.9,4.50476896]
[1758157477407,0.3163,4586.5,4585.9,5.57873792]
[1758157477603,0.1232,4586.5,4586.4,5.35573792]
[1758157477903,0.1232,4586.5,4586.4,5.57873792]
[1758157478108,0.3163,4586.5,4586.4,5.57873792]
[1758157478306,0.6093,4586.5,4586.4,5.57873792]
[1758157478506,0.4162,4586.5,4586.4,5.57873792]
[1758157478908,0.6093,4586.5,4586.4,5.57873792]
[1758157480115,0.4162,4586.5,4586.4,5.57873792]
[1758157480818,0.6093,4586.5,4586.4,5.57873792]
[1758157483420,0.4162,4586.5,4586.4,5.57873792]
[1758157484319,0.4162,4586.5,4586.4,5.35573792]
[1758157484511,0.4162,4586.5,4586.4,5.57873792]
[1758157486419,0.1232,4587.0,4586.4,5.57873792]
[1758157486614,0.1161,4586.5,4586.4,4.50476896]
[1758157486816,0.1232,4587.0,4586.4,4.50476896]
[1758157487016,0.1161,4586.5,4586.4,4.50476896]
[1758157487220,0.1232,4587.0,4586.4,4.50476896]
[1758157487823,0.1232,4587.0,4586.9,1.07396896]
[1758157488020,0.1232,4587.0,4586.9,1.29596896]
[1758157488412,0.4162,4587.0,4586.9,1.29596896]
[1758157488617,0.4162,4587.0,4586.9,4.50376896]
[1758157489113,0.1161,4587.5,4586.9,5.96998792]
[1758157489319,0.4091,4587.5,4587.4,5.35573792]
[1758157489515,0.4091,4587.5,4587.4,5.57773792]
[1758157490620,0.6022,4587.5,4587.4,4.50376896]
[1758157490815,0.4091,4587.5,4587.4,4.50376896]
[1758157491420,0.8087,4587.5,4587.4,4.50376896]
[1758157493222,0.4091,4587.5,4587.4,4.50376896]
[1758157493622,0.4091,4587.5,4587.4,4.28176896]
[1758157493829,0.4091,4587.5,4587.4,5.57773792]
[1758157494925,0.022,4588.2,4588.0,0.2542]
[1758157495229,0.022,4588.2,4588.1,1.94456896]
[1758157497429,0.315,4588.2,4588.1,1.94456896]
[1758157497831,0.022,4588.2,4588.1,1.94456896]
[1758157498026,0.3332,4588.2,4588.1,1.94456896]
[1758157498228,0.022,4588.2,4588.1,1.94456896]
[1758157500629,0.7384,4588.2,4588.1,1.29596896]
[1758157500833,0.7384,4588.2,4588.1,1.95986896]
[1758157501522,0.5424,4588.2,4588.1,1.95986896]
[1758157502630,0.3332,4588.2,4588.1,1.95986896]
[1758157502825,0.022,4588.2,4588.1,1.95986896]
[1758157505034,0.3112,4588.6,4588.1,2.35200896]
[1758157505231,0.1161,4589.0,4588.5,4.69176896]
[1758157505429,0.5204,4589.0,4588.9,1.73786896]
[1758157505625,0.5204,4589.0,4588.9,1.95986896]
[1758157505832,0.3091,4589.3,4589.2,0.6741]
[1758157506033,0.3091,4589.3,4589.2,6.25183792]
[1758157506224,0.45,4589.4,4589.2,5.99793792]
[1758157506433,0.3978,4590.0,4589.9,0.7095]
[1758157506633,0.3978,4590.0,4589.9,2.00546896]
[1758157506937,0.202,4590.3,4590.2,0.7095]
[1758157507238,0.76453359,4590.3,4590.2,2.00546896]
[1758157508230,0.202,4590.3,4590.2,2.00546896]
[1758157508731,0.3091,4590.6,4590.2,3.07943792]
[1758157508929,0.5111,4590.6,4590.5,2.85743792]
[1758157509229,0.202,4590.6,4590.5,3.20053792]
[1758157511137,0.5111,4590.9,4590.8,0.7095]
[1758157511329,0.5111,4590.9,4590.8,2.00546896]
[1758157511529,0.7069,4590.9,4590.8,2.00546896]
[1758157511729,3.3231,4591.5,4590.8,5.21326896]
[1758157511934,1.290015,4591.4,4591.3,0.7095]
[1758157512136,1.268005,4591.4,4591.3,0.9315]
[1758157512336,1.268005,4591.4,4591.3,0.222]
[1758157513035,0.7069,4591.4,4591.3,2.00546896]
[1758157514631,0.202,4591.4,4591.3,2.00546896]
[1758157515033,3.2078,4591.5,4591.3,2.00546896]
[1758157515235,0.5111,4591.8,4591.7,0.4202]
[1758157515433,0.5111,4591.8,4591.7,1.78346896]
[1758157517034,0.202,4591.8,4591.7,1.78346896]
[1758157517243,0.7069,4591.8,4591.7,1.78346896]
[1758157517744,0.3978,4591.8,4591.7,1.78346896]
[1758157518245,0.7069,4591.8,4591.7,1.78346896]
[1758157521046,0.202,4591.8,4591.7,1.78346896]
[1758157522744,0.5111,4592.1,4592.0,0.8306]
[1758157523049,0.202,4592.1,4592.0,2.12656896]
[1758157523643,0.3091,4592.4,4592.0,2.91123792]
[1758157523950,0.56070364,4592.3,4592.2,0.7095]
[1758157524146,0.5111,4592.4,4592.3,0.7095]
[1758157524353,0.5111,4592.4,4592.3,0.9315]
[1758157524549,3.2078,4592.5,4592.4,0.2893]
[1758157524846,3.3231,4593.0,4592.5,0.1211]
[1758157525052,0.5111,4592.6,4592.5,0.8306]
[1758157525254,0.5111,4592.6,4592.5,1.0526]
[1758157525447,0.202,4592.6,4592.5,1.0526]
[1758157525751,3.7189,4593.0,4592.9,0.7095]
[1758157525951,4.27974859,4593.0,4592.9,0.7095]
[1758157526153,4.27974859,4593.0,4592.9,1.78346896]
[1758157526346,4.47554859,4593.0,4592.9,1.78346896]
[1758157528256,4.59084859,4593.0,4592.9,1.78346896]
[1758157529054,4.28174859,4593.0,4592.7,1.07396896]
[1758157529258,0.7069,4592.8,4592.7,1.07396896]
[1758157529458,1.26774859,4592.8,4592.7,1.07396896]
[1758157529644,1.26774859,4592.8,4592.7,1.57246896]
[1758157529857,1.26774859,4592.8,4592.7,1.78346896]
[1758157530059,1.26774859,4592.8,4592.7,0.7095]
[1758157530360,1.26774859,4592.8,4592.7,1.78346896]
[1758157532758,1.26774859,4592.8,4592.7,0.7095]
[1758157533057,1.26774859,4592.8,4592.7,1.78346896]
[1758157533762,1.26774859,4592.8,4592.7,1.94853078]
[1758157535563,1.26774859,4592.8,4592.5,0.221]
[1758157535765,0.7069,4592.8,4592.7,1.23903078]
[1758157535966,1.2696783,4592.8,4592.7,1.44643078]
[1758157536165,1.2696783,4592.8,4592.7,1.74833078]
[1758157536465,1.2696783,4592.8,4592.7,1.94873078]
[1758157542066,0.9605783,4592.8,4592.7,1.94873078]
[1758157542662,0.7647783,4592.8,4592.7,1.94873078]
[1758157542869,0.5627783,4592.8,4592.7,1.94873078]
[1758157547470,3.6016,4594.0,4593.9,0.4078]
[1758157547677,3.6016,4594.0,4593.9,0.7097]
[1758157548281,0.201,4594.3,4594.2,0.7097]
[1758157548576,0.503,4594.3,4594.2,1.94873078]
[1758157549078,0.201,4594.3,4594.2,1.94873078]
[1758157549574,0.503,4594.3,4594.2,1.94873078]
[1758157550081,0.302,4595.2,4594.7,0.7097]
[1758157550278,0.6958,4595.4,4595.3,0.5093]
[1758157550576,0.1203,4597.0,4595.6,0.4078]
[1758157550577,0.503,4595.7,4595.6,0.4078]
[1758157550871,0.201,4595.7,4595.6,2.16973078]
[1758157551870,3.4088,4596.1,4596.0,0.5282]
[1758157552072,0.302,4596.5,4596.3,0.3019]
[1758157552374,40.8,4597.7,4596.0,1.58043078]
[1758157552375,0.022,4598.2,4596.4,5.90686156]
[1758157552679,0.5141,4598.0,4597.9,3.2078]
[1758157553180,0.5141,4598.0,4597.9,4.44683078]
[1758157553684,0.022,4598.2,4597.9,4.44683078]
[1758157553871,0.3213,4598.0,4597.9,4.44683078]
[1758157554077,0.1203,4598.5,4597.9,4.66983078]
[1758157554374,0.1203,4598.5,4598.4,4.44683078]
[1758157554583,0.8161,4599.0,4598.9,1.23903078]
[1758157554782,0.8161,4599.0,4598.9,4.44683078]
[1758157555272,0.8161,4599.0,4598.9,5.68586156]
[1758157555874,0.6233,4599.0,4598.9,7.39092762]
[1758157556074,0.4223,4599.0,4598.9,7.39092762]